bitfinex-derivatives/quotes_BNBF0:USTF0_20250401
["timestamp","ask_amount","ask_price","bid_price","bid_amount"]
[1743505681895,0.707,607.28,606.71,0.27778977]
[1743505682596,0.28669701,607.27,606.71,0.27778977]
[1743505683293,1.32203415,607.26,606.7,0.627]
[1743505683494,1.32203415,607.25,606.7,0.627]
[1743505683695,1.32203415,607.24,606.7,0.627]
[1743505683894,1.32203415,607.23,606.7,0.627]
[1743505684089,1.32203415,607.22,606.7,0.627]
[1743505684294,1.32203415,607.21,606.7,0.627]
[1743505684495,1.32203415,607.2,606.7,0.627]
[1743505684696,0.707,607.28,606.7,0.627]
[1743505684697,1.32203415,607.19,606.7,0.627]
[1743505684898,1.32203415,607.18,606.7,0.627]
[1743505685201,1.32203415,607.17,606.7,0.627]
[1743505685498,1.32203415,607.16,606.7,0.627]
[1743505685796,1.32203415,607.15,606.7,0.627]
[1743505685997,1.32203415,607.16,606.7,0.627]
[1743505686197,1.32203415,607.15,606.7,0.627]
[1743505686399,1.32203415,607.14,606.7,0.627]
[1743505686698,0.28674426,607.17,606.7,0.627]
[1743505686896,1.32203415,607.16,606.7,0.627]
[1743505687098,1.32203415,607.15,606.7,0.627]
[1743505687293,1.32203415,607.14,606.7,0.627]
[1743505687494,1.32203415,607.13,606.7,0.627]
[1743505687695,1.32203415,607.12,606.7,0.627]
[1743505687897,1.32203415,607.11,606.7,0.627]
[1743505688200,1.32203415,607.1,606.7,0.627]
[1743505688499,1.32203415,607.09,606.7,0.627]
[1743505688699,1.32203415,607.08,606.7,0.627]
[1743505689000,1.32203415,607.07,606.7,0.627]
[1743505689199,1.32203415,607.06,606.7,0.627]
[1743505689400,1.32203415,607.05,606.7,0.627]
[1743505689603,1.32203415,607.04,606.7,0.627]
[1743505689895,1.32203415,607.03,606.7,0.627]
[1743505690099,1.32203415,607.02,606.7,0.627]
[1743505690300,1.32203415,607.01,606.7,0.627]
[1743505690496,1.32203415,607.0,606.7,0.627]
[1743505690698,1.32203415,606.99,606.7,0.627]
[1743505690900,1.32203415,606.98,606.7,0.627]
[1743505691094,1.32203415,606.97,606.7,0.627]
[1743505691298,1.32203415,606.96,606.7,0.627]
[1743505691499,1.32203415,606.95,606.7,0.627]
[1743505691697,1.32203415,606.94,606.7,0.627]
[1743505691903,1.32203415,606.93,606.7,0.627]
[1743505692096,1.32203415,606.92,606.7,0.627]
[1743505692301,1.32203415,606.91,606.7,0.627]
[1743505692501,0.28681634,606.96,606.7,0.627]
[1743505692802,1.32585402,606.95,606.65,0.714]
[1743505693003,1.32585402,606.94,606.65,0.714]
[1743505693201,1.32585402,606.93,606.65,0.714]
[1743505693397,1.32585402,606.92,606.65,0.714]
[1743505693602,1.32585402,606.91,606.65,0.714]
[1743505693796,1.32585402,606.9,606.65,0.714]
[1743505694000,0.28682816,606.91,606.65,0.714]
[1743505694201,1.32637837,606.9,606.65,0.714]
[1743505694401,0.28682816,606.91,606.65,0.714]
[1743505694603,1.32662525,606.9,606.65,0.714]
[1743505694902,0.28682816,606.91,606.65,0.714]
[1743505695098,1.32663017,606.9,606.65,0.714]
[1743505695298,0.28682816,606.91,606.65,0.714]
[1743505695497,1.32684999,606.9,606.65,0.714]
[1743505695701,0.28682816,606.91,606.65,0.714]
[1743505696703,1.006,607.27,606.65,0.714]
[1743505696900,0.912,607.23,606.65,0.714]
[1743505697100,0.28676671,606.9,606.65,0.714]
[1743505697298,0.912,607.23,606.65,0.714]
[1743505697501,1.32738925,607.22,606.65,0.714]
[1743505697703,0.28677143,606.89,606.65,0.714]
[1743505697899,0.912,607.23,606.32,0.931]
[1743505698206,0.28677261,606.88,606.33,0.27786741]
[1743505698505,0.912,607.23,606.33,0.27786741]
[1743505698706,1.32755028,607.22,606.34,0.27786467]
[1743505698906,1.32755028,607.21,606.35,0.27786467]
[1743505699205,1.32755028,607.2,606.36,0.27786467]
[1743505699408,1.32755028,607.19,606.33,0.27786467]
[1743505699602,1.32755028,607.18,606.34,0.27786467]
[1743505699803,1.32755028,607.17,606.35,0.27786467]
[1743505700008,1.32755028,607.16,606.33,0.27786467]
[1743505700205,1.32755028,607.15,606.34,0.27786467]
[1743505700402,1.32755028,607.14,606.35,0.2778596]
[1743505700602,1.3278434,607.13,606.36,0.2778596]
[1743505700808,1.3278434,607.12,606.37,0.2778596]
[1743505701006,1.3278434,607.11,606.38,0.2778596]
[1743505701205,1.3278434,607.1,606.33,0.2778596]
[1743505701408,1.3278434,607.1,606.39,0.596]
[1743505701409,1.3278434,607.09,606.39,0.596]
[1743505701608,1.3278434,607.08,606.4,0.2778596]
[1743505701807,1.3278434,607.07,606.4,0.2778596]
[1743505702003,1.3278434,607.06,606.4,0.2778596]
[1743505702303,1.32799536,607.05,606.4,0.2778596]
[1743505702503,1.32799536,607.04,606.4,0.2778596]
[1743505702706,1.32799536,607.03,606.4,0.2778596]
[1743505702906,1.32799536,607.02,606.4,0.2778596]
[1743505703107,1.32799536,607.01,606.4,0.2778596]
[1743505703302,1.32799536,607.0,606.4,0.2778596]
[1743505703507,1.32799536,606.99,606.4,0.2778596]
[1743505703703,1.32799536,606.98,606.4,0.2778596]
[1743505703904,1.32799536,606.97,606.4,0.2778596]
[1743505704104,1.32799536,606.96,606.4,0.2778596]
[1743505704305,1.32799536,606.95,606.4,0.2778596]
[1743505704505,0.698,607.1,606.4,0.2778596]
[1743505704810,1.32810185,607.09,606.4,0.2778596]
[1743505705010,1.32810185,607.08,606.4,0.2778596]
[1743505705309,1.32810185,607.07,606.4,0.2778596]
[1743505705510,1.32810185,607.06,606.4,0.2778596]
[1743505705710,1.32810185,607.05,606.4,0.2778596]
[1743505705913,1.32810185,607.04,606.4,0.2778596]
[1743505706111,1.32810185,607.03,606.4,0.2778596]
[1743505706312,1.32810185,607.02,606.4,0.2778596]
[1743505706612,1.32810185,607.01,606.4,0.2778596]
[1743505706808,1.32810185,607.0,606.39,0.596]
[1743505707005,1.32810185,606.99,606.39,0.596]
[1743505707311,1.32810185,606.98,606.39,0.596]
[1743505707611,1.32810185,606.97,606.39,0.596]
[1743505707807,1.32810185,606.96,606.39,0.596]
[1743505708013,1.32810185,606.95,606.39,0.596]
[1743505708311,1.32810185,606.94,606.39,0.596]
[1743505708511,1.32810185,606.93,606.39,0.596]
[1743505708711,1.32810185,606.92,606.39,0.596]
[1743505708909,0.698,607.1,606.39,0.596]
[1743505709106,1.32814832,607.09,606.4,0.27781995]
[1743505709310,0.698,607.1,606.4,0.27781995]
[1743505710008,0.28678561,607.09,606.4,0.27781995]
[1743505711612,0.28678561,607.09,606.39,0.596]
[1743505711812,0.28678561,607.09,606.4,0.27780529]
[1743505712017,0.781,607.08,606.4,0.27780529]
[1743505712409,1.32853122,607.07,606.4,0.27780529]
[1743505712606,0.781,607.08,606.4,0.27780529]
[1743505712809,1.32852637,607.07,606.4,0.27780529]
[1743505713014,0.781,607.08,606.4,0.27780529]
[1743505713214,1.32849099,607.07,606.4,0.27780529]
[1743505713412,0.781,607.08,606.4,0.27780529]
[1743505713613,0.727,607.07,606.4,0.27780529]
[1743505714714,1.32842621,607.06,606.4,0.27780529]
[1743505714913,0.727,607.07,606.4,0.27780529]
[1743505715114,1.61524183,607.06,606.4,0.27780529]
[1743505715315,0.28679625,607.06,606.4,0.27780529]
[1743505717115,1.328292,607.05,606.4,0.27780529]
[1743505717315,0.28679625,607.06,606.4,0.27780529]
[1743505717615,1.32824037,607.05,606.4,0.27780529]
[1743505717814,0.727,607.07,606.4,0.27780529]
[1743505718007,0.28682107,607.05,606.4,0.27780529]
[1743505718213,1.32822276,607.04,606.39,0.596]
[1743505718410,1.32822276,607.03,606.39,0.596]
[1743505718716,1.32822276,607.02,606.39,0.596]
[1743505718911,1.32822276,607.01,606.39,0.596]
[1743505719111,1.32822276,607.0,606.39,0.596]
[1743505719311,1.32822276,606.99,606.39,0.596]
[1743505719518,1.32822276,606.98,606.39,0.596]
[1743505719716,1.32822276,606.97,606.39,0.596]
[1743505719916,1.32822276,606.96,606.39,0.596]
[1743505720116,1.32822276,606.95,606.39,0.596]
[1743505720318,0.28682107,607.05,606.39,0.596]
[1743505720520,1.32801836,607.04,606.39,0.596]
[1743505720820,1.32801836,607.03,606.39,0.596]
[1743505721017,1.32801836,607.02,606.39,0.596]
[1743505721210,1.32801836,607.01,606.39,0.596]
[1743505721415,0.727,607.07,606.39,0.596]
[1743505721719,1.32821051,607.06,606.39,0.596]
[1743505722019,0.28682343,607.0,606.39,0.596]
[1743505722218,1.32821051,606.99,606.39,0.596]
[1743505722417,1.32821051,606.98,606.39,0.596]
[1743505722721,0.28682343,607.0,606.39,0.596]
[1743505722722,1.32821051,606.97,606.4,0.27788388]
[1743505723020,1.32821051,606.99,606.39,0.596]
[1743505723221,0.28682343,607.0,606.4,0.27788781]
[1743505723222,1.32821051,606.98,606.4,0.27788781]
[1743505723423,1.32821051,606.97,606.4,0.27788781]
[1743505723721,1.32821051,606.96,606.4,0.27788781]
[1743505724021,0.28682343,607.0,606.4,0.27788781]
[1743505724220,1.32764463,606.99,606.4,0.27788781]
[1743505724423,1.32764463,606.98,606.4,0.27788781]
[1743505724624,1.32764463,606.97,606.4,0.27788781]
[1743505724825,1.32764463,606.96,606.4,0.27788781]
[1743505725017,1.32764463,606.95,606.4,0.27788781]
[1743505725221,1.32764463,606.94,606.4,0.27788781]
[1743505725417,1.32748251,606.93,606.39,0.596]
[1743505725621,0.631,606.99,606.39,0.596]
[1743505725825,1.32743381,606.98,606.39,0.596]
[1743505726123,1.32743381,606.97,606.39,0.596]
[1743505726321,1.32743381,606.96,606.39,0.596]
[1743505726620,1.32743381,606.95,606.39,0.596]
[1743505726824,1.32743381,606.94,606.39,0.596]
[1743505727024,1.32743381,606.93,606.39,0.596]
[1743505727325,1.32743381,606.92,606.39,0.596]
[1743505727524,0.28686599,606.93,606.39,0.596]
[1743505728425,1.32800112,606.92,606.32,0.931]
[1743505728625,0.28686599,606.93,606.33,0.27790646]
[1743505728920,1.32801652,606.92,606.33,0.27790646]
[1743505729124,1.32801652,606.91,606.33,0.27790646]
[1743505729324,1.32801652,606.9,606.33,0.27790646]
[1743505729519,1.32801652,606.89,606.32,0.931]
[1743505729720,1.32801652,606.88,606.32,0.931]
[1743505730024,1.32801652,606.87,606.32,0.931]
[1743505730225,1.32801652,606.86,606.32,0.931]
[1743505730418,0.631,606.99,606.32,0.931]
[1743505730419,1.32801652,606.85,606.32,0.931]
[1743505730619,1.32801652,606.84,606.32,0.931]
[1743505730825,1.32801652,606.83,606.32,0.931]
[1743505731018,1.32801652,606.82,606.32,0.931]
[1743505731219,1.32657455,606.81,606.32,0.931]
[1743505731423,1.32657455,606.8,606.32,0.931]
[1743505731619,1.32657455,606.79,606.32,0.931]
[1743505731821,1.32657455,606.78,606.32,0.931]
[1743505732018,1.32596861,606.77,606.32,0.931]
[1743505732219,1.32596861,606.76,606.32,0.931]
[1743505732422,0.2869334,606.87,606.32,0.931]
[1743505732626,1.32594141,606.86,606.32,0.931]
[1743505732921,1.32594141,606.85,606.32,0.931]
[1743505733122,1.32594141,606.84,606.32,0.931]
[1743505733325,1.32594141,606.83,606.32,0.931]
[1743505733524,1.32594141,606.82,606.32,0.931]
[1743505733725,1.32594141,606.81,606.32,0.931]
[1743505733921,1.32594141,606.8,606.32,0.931]
[1743505734227,1.32594141,606.79,606.33,0.27797646]
[1743505734423,1.32594141,606.78,606.32,0.931]
[1743505734621,1.32594141,606.77,606.32,0.931]
[1743505734820,0.28689792,606.85,606.32,0.931]
[1743505735027,1.32554492,606.84,606.32,0.931]
[1743505735223,1.32554492,606.83,606.32,0.931]
[1743505735522,1.32554492,606.82,606.32,0.931]
[1743505735728,1.32554492,606.81,606.32,0.931]
[1743505736029,0.28689792,606.85,606.32,0.931]
[1743505736419,0.28689792,606.85,606.33,0.27793579]
[1743505737026,0.28689792,606.85,606.34,0.27792573]
[1743505737323,0.28689792,606.85,606.32,0.931]
[1743505738126,0.28689792,606.85,606.33,0.27791975]
[1743505738728,1.527,606.89,606.33,0.27791975]
[1743505740029,0.2868518,606.88,606.34,0.27786982]
[1743505740232,0.2868518,606.88,606.33,0.27786982]
[1743505740530,0.2868518,606.88,606.34,0.27786982]
[1743505740729,0.2868518,606.88,606.33,0.27786982]
[1743505741029,0.2868518,606.88,606.34,0.27786982]
[1743505741228,0.2868518,606.88,606.35,0.27789408]
[1743505741422,0.2868518,606.88,606.32,0.931]
[1743505741423,0.2868518,606.88,606.33,0.27789408]
[1743505741823,1.527,606.89,606.33,0.27789408]
[1743505742029,0.28686126,606.87,606.33,0.27789408]
[1743505744433,1.32660529,606.86,606.32,0.931]
[1743505744633,1.32660529,606.85,606.32,0.931]
[1743505744826,1.32660529,606.84,606.32,0.931]
[1743505745031,1.32660529,606.83,606.32,0.931]
[1743505745334,1.32660529,606.82,606.32,0.931]
[1743505745535,1.32660529,606.81,606.32,0.931]
[1743505745727,1.32660529,606.8,606.32,0.931]
[1743505745932,1.32660529,606.79,606.32,0.931]
[1743505746131,1.32660529,606.78,606.32,0.931]
[1743505746330,1.32660529,606.77,606.32,0.931]
[1743505746534,1.32660529,606.76,606.32,0.931]
[1743505746737,1.32660529,606.75,606.32,0.931]
[1743505747034,1.32660529,606.74,606.32,0.931]
[1743505747232,1.32660529,606.73,606.32,0.931]
[1743505747435,1.32660529,606.72,606.32,0.931]
[1743505747640,1.32660529,606.71,606.32,0.931]
[1743505747937,1.32660529,606.7,606.32,0.931]
[1743505748238,1.32660529,606.69,606.32,0.931]
[1743505748431,1.32660529,606.68,606.32,0.931]
[1743505748631,1.32660529,606.67,606.32,0.931]
[1743505748840,1.32660529,606.66,606.32,0.931]
[1743505749041,1.32660529,606.65,606.32,0.931]
[1743505749242,1.32660529,606.64,606.32,0.931]
[1743505749544,1.32660529,606.63,606.32,0.931]
[1743505749846,1.32660529,606.62,606.32,0.931]
[1743505750043,1.32660529,606.61,606.32,0.931]
[1743505750246,1.32660529,606.6,606.32,0.931]
[1743505750444,1.32660529,606.59,606.32,0.931]
[1743505750646,1.32660529,606.84,606.32,0.931]
[1743505750843,1.32660529,606.83,606.32,0.931]
[1743505751145,1.32190195,606.82,606.32,0.931]
[1743505751346,1.32190195,606.81,606.32,0.931]
[1743505751645,1.32190195,606.8,606.32,0.931]
[1743505751844,0.2869405,606.85,606.32,0.931]
[1743505751845,1.32190195,606.79,606.32,0.931]
[1743505752040,1.32190195,606.78,606.32,0.931]
[1743505752241,1.32190195,606.77,606.32,0.931]
[1743505752440,1.32190195,606.76,606.32,0.931]
[1743505752646,1.32190195,606.75,606.32,0.931]
[1743505752845,1.32190195,606.74,606.32,0.931]
[1743505753044,1.32190195,606.73,606.32,0.931]
[1743505753244,1.32190195,606.72,606.32,0.931]
[1743505753446,1.32190195,606.71,606.2,0.719]
[1743505753648,1.32190195,606.7,606.2,0.719]
[1743505753947,1.32190195,606.69,606.2,0.719]
[1743505754149,1.32190195,606.68,606.2,0.719]
[1743505754341,1.32190195,606.84,606.2,0.719]
[1743505754542,1.32190195,606.83,606.2,0.719]
[1743505754747,1.32190195,606.82,606.2,0.719]
[1743505754950,1.31993797,606.81,606.2,0.719]
[1743505755150,1.31993797,606.8,606.2,0.719]
[1743505755349,1.31993797,606.79,606.2,0.719]
[1743505755649,0.2869405,606.85,606.2,0.719]
[1743505755650,1.31993797,606.78,606.2,0.719]
[1743505755850,1.31993797,606.77,606.2,0.719]
[1743505756050,1.31993797,606.76,606.2,0.719]
[1743505756246,1.31993797,606.75,606.2,0.719]
[1743505756443,1.31993797,606.74,606.2,0.719]
[1743505756647,1.31936256,606.73,606.2,0.719]
[1743505756848,1.31936256,606.72,606.2,0.719]
[1743505757047,1.31936256,606.71,606.2,0.719]
[1743505757247,1.31936256,606.7,606.2,0.719]
[1743505757443,1.31936256,606.69,606.2,0.719]
[1743505757648,1.31936256,606.68,606.2,0.719]
[1743505757852,1.31936256,606.67,606.2,0.719]
[1743505758051,1.31936256,606.71,606.2,0.719]
[1743505758246,1.31936256,606.7,606.2,0.719]
[1743505758549,0.28700084,606.72,606.2,0.719]
[1743505760154,0.28700084,606.72,606.21,0.27798625]
[1743505761555,0.28700084,606.72,606.2,0.719]
[1743505762656,1.31974378,606.71,606.2,0.719]
[1743505763058,1.31974378,606.76,606.2,0.719]
[1743505763358,1.31974378,606.75,606.2,0.719]
[1743505763558,1.31974378,606.74,606.2,0.719]
[1743505763858,1.31974378,606.73,606.2,0.719]
[1743505764051,1.31974378,606.72,606.2,0.719]
[1743505764256,1.31974378,606.71,606.2,0.719]
[1743505764456,1.31974378,606.72,606.2,0.719]
[1743505765158,1.31902095,606.72,606.2,0.719]
[1743505765459,1.31902095,606.71,606.2,0.719]
[1743505765651,1.31902095,606.72,606.2,0.719]
[1743505765857,1.31902095,606.71,606.2,0.719]
[1743505766053,0.28698546,606.73,606.2,0.719]
[1743505766653,1.60600641,606.73,606.2,0.719]
[1743505766857,0.28698546,606.73,606.2,0.719]
[1743505768358,0.28698546,606.73,606.21,0.27799247]
[1743505768557,0.28698546,606.73,606.2,0.719]
[1743505768754,0.28698546,606.73,606.21,0.27799321]
[1743505769063,0.28698546,606.73,606.22,0.27799321]
[1743505769359,0.28698546,606.73,606.15,0.643]
[1743505769555,0.28698546,606.73,606.16,0.27802763]
[1743505769754,0.28698546,606.73,606.15,0.643]
[1743505772060,0.895,606.72,606.15,0.643]
[1743505772565,0.895,606.72,606.15,1.295]
[1743505773566,0.895,606.72,606.16,0.27798677]
[1743505773766,0.895,606.72,606.15,1.295]
[1743505773967,0.895,606.72,606.16,0.27796989]
[1743505775362,0.28693931,606.71,606.15,1.295]
[1743505775566,0.28693931,606.71,606.16,0.27795779]
[1743505776967,0.28693931,606.71,606.15,1.295]
[1743505777168,0.28693931,606.71,606.16,0.27792784]
[1743505777870,0.895,606.72,606.16,0.27792784]
[1743505781571,0.895,606.72,606.16,0.60787372]
[1743505781767,0.895,606.72,606.17,0.27792784]
[1743505783674,0.895,606.72,606.18,0.27789443]
[1743505783877,0.895,606.72,606.17,0.27789443]
[1743505784170,0.895,606.72,606.18,0.27789443]
[1743505784375,0.895,606.72,606.17,0.27789443]
[1743505787678,0.28694523,606.71,606.17,0.27789443]
[1743505788877,0.28694523,606.71,606.18,0.27789443]
[1743505789077,0.28694523,606.71,606.16,0.27789443]
[1743505789278,0.28694523,606.71,606.17,0.27789443]
[1743505789474,0.28694523,606.71,606.16,0.27789443]
[1743505789679,0.28694523,606.71,606.17,0.27789443]
[1743505789875,0.28694523,606.71,606.16,0.27789443]
[1743505790074,0.28694523,606.71,606.17,0.27798228]
[1743505790278,0.28694523,606.71,606.15,0.643]
[1743505790279,0.28694523,606.71,606.18,0.27798228]
[1743505790479,0.28694523,606.71,606.16,0.27798228]
[1743505790677,0.28694523,606.71,606.17,0.27798228]
[1743505790983,0.28694523,606.71,606.18,0.27798228]
[1743505791181,0.28694523,606.71,606.16,0.27798228]
[1743505791482,0.28694523,606.71,606.17,0.27798228]
[1743505791681,0.28694523,606.71,606.15,0.643]
[1743505792285,0.28694523,606.71,606.16,0.27794688]
[1743505792884,0.895,606.72,606.16,0.27794688]
[1743505795886,1.09590856,606.73,606.16,0.27794688]
[1743505795887,0.809,606.73,606.16,0.27794688]
[1743505796080,1.09590856,606.73,606.16,0.27794688]
[1743505796586,1.09590856,606.73,606.15,0.643]
[1743505796787,1.09590856,606.73,606.16,0.2779103]
[1743505796984,0.28690856,606.73,606.16,0.2779103]
[1743505798782,1.22390856,606.73,606.16,0.2779103]
[1743505799184,0.937,606.73,606.17,0.32994044]
[1743505799489,0.937,606.73,606.18,0.2779103]
[1743505800788,0.937,606.73,606.18,0.6078453]
[1743505800985,0.937,606.73,606.19,0.2779103]
[1743505802599,0.937,606.73,606.2,0.27787027]
[1743505802793,0.937,606.73,606.21,0.27787027]
[1743505802993,0.937,606.73,606.22,0.27787027]
[1743505803198,0.937,606.73,606.22,0.32991323]
[1743505803393,0.937,606.73,606.23,0.27787027]
[1743505803996,0.937,606.73,606.24,0.27786763]
[1743505804193,0.937,606.73,606.22,0.32991323]
[1743505804399,0.937,606.73,606.25,0.3298969]
[1743505807704,0.937,606.73,606.26,0.27781215]
[1743505807999,0.937,606.73,606.27,0.32988602]
[1743505808203,0.937,606.73,606.28,0.27781215]
[1743505808403,0.937,606.73,606.29,0.32987514]
[1743505808606,0.937,606.73,606.3,0.27781215]
[1743505808902,0.937,606.73,606.31,0.32986426]
[1743505809104,0.937,606.73,606.32,0.27781215]
[1743505809301,0.937,606.73,606.33,0.32985338]
[1743505809504,0.937,606.73,606.34,0.27781215]
[1743505809703,0.937,606.73,606.35,0.3298425]
[1743505809900,0.937,606.73,606.36,0.27781215]
[1743505810204,0.937,606.73,606.37,0.32983162]
[1743505810506,0.937,606.73,606.38,0.27781215]
[1743505810804,0.937,606.73,606.39,0.60756926]
[1743505810998,0.937,606.73,606.4,0.27774852]
[1743505812300,0.937,606.73,606.41,0.27774825]
[1743505812501,0.937,606.73,606.4,0.27774825]
[1743505812700,0.937,606.73,606.41,0.27774825]
[1743505812905,0.937,606.73,606.4,0.27774825]
[1743505813100,0.937,606.73,606.41,0.27774825]
[1743505813406,0.937,606.73,606.42,0.60755267]
[1743505813608,0.937,606.73,606.43,0.60754723]
[1743505813907,0.937,606.73,606.44,0.32979354]
[1743505814107,0.937,606.73,606.45,0.27771525]
[1743505814423,0.937,606.73,606.46,0.32978267]
[1743505814607,0.937,606.73,606.47,0.27771525]
[1743505814806,0.937,606.73,606.48,0.32977179]
[1743505816410,0.937,606.73,606.49,0.27770126]
[1743505822820,0.937,606.73,606.48,0.32977179]
[1743505823420,0.937,606.73,606.49,0.27776207]
[1743505823822,0.633,606.74,606.49,0.27776207]
[1743505824223,0.633,606.74,606.5,0.32976092]
[1743505824523,0.633,606.74,606.51,0.27776207]
[1743505824723,0.633,606.74,606.52,0.32975004]
[1743505825023,0.633,606.74,606.53,0.27776207]
[1743505827027,0.633,606.74,606.53,0.60750668]
[1743505827225,0.633,606.74,606.54,0.60750124]
[1743505827526,0.633,606.74,606.55,0.60749581]
[1743505827726,0.633,606.74,606.56,0.27776207]
[1743505830228,0.633,606.74,606.55,0.32973374]
[1743505830527,0.633,606.74,606.56,0.27772692]
[1743505831927,0.633,606.74,606.57,0.27772674]
[1743505832127,0.633,606.74,606.58,0.27772674]
[1743505832333,0.633,606.74,606.56,0.27772674]
[1743505832535,0.633,606.74,606.57,0.27772674]
[1743505832728,0.633,606.74,606.56,0.27772674]
[1743505832929,0.633,606.74,606.57,0.27772674]
[1743505833224,0.633,606.74,606.58,0.27772674]
[1743505833430,0.633,606.74,606.56,0.27772674]
[1743505833729,0.633,606.74,606.55,0.32973374]
[1743505833730,0.633,606.74,606.57,0.27772674]
[1743505834030,0.633,606.74,606.58,0.27772674]
[1743505834230,0.633,606.74,606.59,0.27772674]
[1743505834433,0.633,606.74,606.56,0.27772674]
[1743505834728,0.633,606.74,606.57,0.2777281]
[1743505834929,0.633,606.74,606.58,0.2777281]
[1743505835132,0.667,607.1,606.56,0.2777281]
[1743505835326,0.667,607.1,606.57,0.2777281]
[1743505835529,0.667,607.1,606.56,0.2777281]
[1743505835730,0.667,607.1,606.57,0.2777281]
[1743505836031,0.667,607.1,606.55,0.32973374]
[1743505838334,0.667,607.1,606.56,0.27778304]
[1743505838732,0.667,607.1,606.55,0.32973374]
[1743505839432,0.667,607.1,606.56,0.27778568]
[1743505840134,0.667,607.1,606.55,0.32973374]
[1743505841734,0.28680097,607.09,606.55,0.32973374]
[1743505844636,0.28680097,607.09,606.18,0.713]
[1743505844837,1.60942659,607.09,606.19,0.27787776]
[1743505845432,0.28680097,607.09,606.19,0.27787776]
[1743505845832,0.93,607.08,606.19,0.27787776]
[1743505846334,0.93,607.08,606.2,0.32992411]
[1743505846540,0.93,607.08,606.21,0.27787776]
[1743505846933,0.93,607.08,606.2,0.32992411]
[1743505847138,0.93,607.08,606.21,0.27783806]
[1743505847534,0.28680097,607.07,606.22,0.726]
[1743505847735,0.28680097,607.07,606.23,0.60774585]
[1743505847940,0.94780097,607.07,606.24,0.6077404]
[1743505848136,1.80180097,607.07,606.25,0.60773496]
[1743505848341,1.80180097,607.07,606.26,0.60772952]
[1743505848535,1.80180097,607.07,606.27,0.32988602]
[1743505848740,1.80180097,607.07,606.28,0.27777263]
[1743505848934,1.80180097,607.07,606.29,0.32987514]
[1743505849536,1.3234715,607.06,606.29,0.32987514]
[1743505849740,1.32333798,607.05,606.29,0.32987514]
[1743505849942,1.32333798,607.04,606.29,0.32987514]
[1743505850141,1.32333798,607.03,606.29,0.32987514]
[1743505850337,1.32333798,607.02,606.29,0.32987514]
[1743505850542,0.28686481,607.03,606.29,0.32987514]
[1743505850742,1.32333798,607.02,606.29,0.32987514]
[1743505850945,1.32333798,607.01,606.29,0.32987514]
[1743505851143,1.32333798,607.02,606.29,0.32987514]
[1743505851439,1.32333798,607.01,606.29,0.32987514]
[1743505851642,1.32333798,607.0,606.29,0.32987514]
[1743505851842,0.28686481,607.03,606.3,0.27791629]
[1743505851843,1.32333798,607.02,606.3,0.27791629]
[1743505852044,1.32333798,607.01,606.3,0.27791629]
[1743505852340,1.32333798,607.0,606.3,0.27791629]
[1743505852541,1.3240474,607.02,606.3,0.27791629]
[1743505853139,0.935,607.01,606.3,0.27791629]
[1743505853338,0.935,607.01,606.31,0.2779006]
[1743505853645,0.935,607.01,606.32,0.2779006]
[1743505853646,1.2218589,607.01,606.32,0.2779006]
[1743505853849,1.2218589,607.01,606.33,0.2779006]
[1743505854044,1.2218589,607.01,606.3,0.2779006]
[1743505855948,1.2218589,607.01,606.31,0.32986426]
[1743505856148,1.2218589,607.01,606.32,0.2779006]
[1743505856445,1.2218589,607.01,606.33,0.27783117]
[1743505856648,1.2218589,607.01,606.34,0.27783117]
[1743505856948,1.2218589,607.01,606.35,0.27783117]
[1743505857146,1.2218589,607.01,606.31,0.32986426]
[1743505857147,1.2218589,607.01,606.36,0.27783117]
[1743505857347,1.2218589,607.01,606.37,0.27783117]
[1743505857649,1.2218589,607.01,606.38,0.60765735]
[1743505857844,1.2218589,607.01,606.39,0.27783117]
[1743505858549,0.935,607.01,606.39,0.27783117]
[1743505858746,0.935,607.01,606.4,0.3298153]
[1743505858942,0.935,607.01,606.41,0.27783117]
[1743505859250,0.935,607.01,606.42,0.32980442]